bitfinex/quotes_SOLUSD_20240702
["timestamp","ask_amount","ask_price","bid_price","bid_amount"]
[1719947772280,26.5549,152.56,152.43,120.0]
[1719947772484,20.0,152.56,152.43,120.0]
[1719947772703,47.04,152.58,152.43,120.0]
[1719947773102,6.5548,152.56,152.43,120.0]
[1719947773309,20.0,152.55,152.43,120.0]
[1719947774016,20.0,152.57,152.43,120.0]
[1719947774621,7.9855869,152.62,152.5,16.1458]
[1719947774789,21.0333,152.63,152.51,120.0]
[1719947775097,21.0333,152.63,152.51,147.04]
[1719947775892,27.5851,152.63,152.51,147.04]
[1719947776213,27.04,152.66,152.51,147.04]
[1719947776516,33.5906,152.66,152.51,147.04]
[1719947776698,6.5506,152.66,152.53,100.0]
[1719947776905,28.4944,152.67,152.54,20.0]
[1719947777089,6.5505,152.66,152.54,20.0]
[1719947777488,28.4944,152.67,152.54,20.0]
[1719947777921,20.0,152.66,152.54,20.0]
[1719947778216,26.5505,152.66,152.54,20.0]
[1719947779093,20.0,152.66,152.54,20.0]
[1719947779288,20.0,152.66,152.55,100.0]
[1719947779490,20.0,152.66,152.53,100.0]
[1719947779805,21.9443,152.67,152.57,100.0]
[1719947780122,6.35,152.71,152.58,36.5045]
[1719947780417,6.5496,152.68,152.58,36.5045]
[1719947780613,6.5492,152.69,152.58,36.5045]
[1719947781403,6.5497,152.68,152.58,36.5045]
[1719947781607,13.18037318,152.71,152.58,36.5045]
[1719947781804,26.549,152.7,152.58,36.5045]
[1719947781992,6.5492,152.69,152.58,36.5045]
[1719947782197,20.0,152.68,152.58,36.5045]
[1719947782398,26.5496,152.68,152.58,36.5045]
[1719947783005,6.5501,152.67,152.58,36.5045]
[1719947783601,20.0,152.68,152.58,36.5045]
[1719947783797,6.5527,152.61,152.54,16.4115]
[1719947784019,6.5524,152.62,152.54,16.4115]
[1719947784229,51.1808,152.67,152.52,6.5831]
[1719947784230,6.5527,152.61,152.52,6.5831]
[1719947784515,33.5921,152.63,152.52,6.5831]
[1719947785417,33.5921,152.63,152.53,20.0]
[1719947785807,33.5921,152.63,152.52,6.5831]
[1719947786011,26.5524,152.62,152.52,6.5831]
[1719947786702,6.5528,152.61,152.53,0.82020229]
[1719947786904,26.5523,152.62,152.53,0.82020229]
[1719947787120,6.5528,152.61,152.52,6.5831]
[1719947787625,20.0,152.62,152.52,6.5831]
[1719947787805,26.5518,152.63,152.52,6.5831]
[1719947788406,20.0,152.63,152.52,6.5831]
[1719947788905,26.5518,152.63,152.52,6.5831]
[1719947789308,6.5523,152.62,152.52,6.5831]
[1719947789510,26.5527,152.61,152.52,6.5831]
[1719947789706,20.0,152.61,152.52,6.5831]
[1719947789906,6.5542,152.58,152.52,6.5831]
[1719947790208,16.4297,152.6,152.49,0.8635735]
[1719947790410,33.3732,152.58,152.49,0.8635735]
[1719947790614,6.5552,152.55,152.49,0.8635735]
[1719947791115,6.5566,152.52,152.49,0.8635735]
[1719947791322,33.3732,152.58,152.49,0.8635735]
[1719947791615,6.5549,152.56,152.49,0.8635735]
[1719947791821,20.0,152.57,152.49,0.8635735]
[1719947792013,20.0,152.59,152.49,0.8635735]
[1719947792224,20.0,152.59,152.5,21.3693]
[1719947792603,27.04,152.61,152.5,21.3693]
[1719947793701,12.8854,152.62,152.51,20.0]
[1719947793931,20.0,152.61,152.51,20.0]
[1719947794309,26.5518,152.63,152.51,20.0]
[1719947795015,20.0,152.63,152.52,100.0]
[1719947796032,20.0,152.63,152.53,20.0]
[1719947796416,22.0278,152.64,152.53,20.0]
[1719947796605,13.0809,152.66,152.53,20.0]
[1719947797008,6.5302,152.66,152.53,20.0]
[1719947797208,15.1568,152.68,152.54,100.0]
[1719947797424,15.1568,152.68,152.55,20.0]
[1719947797621,6.5507,152.66,152.55,20.0]
[1719947797914,6.5509,152.65,152.55,20.0]
[1719947798410,20.0,152.64,152.55,20.0]
[1719947799237,6.83681834,152.69,152.56,122.0395]
[1719947799526,6.5484,152.71,152.59,100.0]
[1719947801042,6.5488,152.7,152.57,120.0]
[1719947801522,6.5488,152.7,152.59,100.0]
[1719947801715,20.0,152.69,152.59,100.0]
[1719947802244,20.0,152.69,152.57,20.0]
[1719947802533,6.55,152.68,152.57,20.0]
[1719947802714,6.5493,152.69,152.57,120.0]
[1719947802914,20.0,152.68,152.57,120.0]
[1719947806532,20.0,152.68,152.57,20.0]
[1719947807621,20.0,152.68,152.57,120.0]
[1719947809439,26.5497,152.68,152.57,20.0]
[1719947809651,6.5501,152.67,152.57,20.0]
[1719947809940,6.5512,152.65,152.57,20.0]
[1719947810620,6.11830032,152.65,152.57,20.0]
[1719947810936,20.0,152.66,152.57,20.0]
[1719947811142,22.8789,152.65,152.57,20.0]
[1719947812039,22.8789,152.65,152.53,6.6572]
[1719947812040,16.328,152.65,152.53,6.6572]
[1719947812349,20.0,152.64,152.52,15.5155]
[1719947812515,6.5521,152.63,152.52,15.5155]
[1719947812719,20.0,152.62,152.52,15.5155]
[1719947813352,20.0,152.63,152.52,15.5155]
[1719947813642,26.5518,152.63,152.52,15.5155]
[1719947813847,20.0,152.63,152.53,20.0]
[1719947814931,20.0,152.63,152.52,15.5155]
[1719947815335,20.0,152.63,152.53,20.0]
[1719947815942,20.0,152.63,152.53,120.0]
[1719947817354,20.0,152.63,152.53,20.0]
[1719947822230,26.5518,152.63,152.53,20.0]
[1719947822531,6.3334,152.62,152.5,6.6572]
[1719947822755,6.3334,152.62,152.49,0.8635735]
[1719947822756,6.5533,152.6,152.49,0.8635735]
[1719947824056,15.5295,152.59,152.49,20.8635735]
[1719947826552,15.5295,152.59,152.5,100.0]
[1719947826857,15.5295,152.59,152.51,20.0]
[1719947827030,15.5295,152.59,152.49,20.8635735]
[1719947830259,15.5295,152.59,152.5,100.0]
[1719947830459,15.5295,152.59,152.51,20.0]
[1719947832062,6.3334,152.62,152.52,100.0]
[1719947832240,6.3334,152.62,152.53,20.0]
[1719947833242,6.3334,152.62,152.51,20.0]
[1719947835460,12.8856,152.62,152.51,20.0]
[1719947835972,6.3334,152.62,152.51,20.0]
[1719947836343,12.8857,152.62,152.51,20.0]
[1719947836756,6.3334,152.62,152.51,20.0]
[1719947837769,6.5546,152.57,152.49,0.8635735]
[1719947838065,27.06,152.58,152.49,0.8635735]
[1719947838271,20.0,152.57,152.49,0.8635735]
[1719947838564,21.9483,152.56,152.49,0.8635735]
[1719947838772,6.5558,152.54,152.49,0.8635735]
[1719947838975,6.5553,152.55,152.49,0.8635735]
[1719947839263,13.1293,152.55,152.49,0.8635735]
[1719947840250,6.5553,152.55,152.49,0.8635735]
[1719947842350,6.557,152.51,152.49,0.8635735]
[1719947842551,6.5568,152.52,152.49,0.8635735]
[1719947842750,6.4752,152.51,152.49,0.8635735]
[1719947846146,15.7838,152.54,152.49,0.8635735]
[1719947849247,22.3395,152.54,152.49,0.8635735]
[1719947849446,15.7838,152.54,152.49,0.8635735]
[1719947850269,6.5563,152.53,152.49,0.8635735]
[1719947850770,22.3395,152.54,152.49,0.8635735]
[1719947850947,6.5561,152.53,152.49,0.8635735]
[1719947852248,22.3395,152.54,152.49,0.8635735]
[1719947852660,15.7838,152.54,152.49,0.8635735]
[1719947853262,27.06,152.57,152.49,0.8635735]
[1719947853462,20.0,152.56,152.49,0.8635735]
[1719947853668,16.4554,152.58,152.49,0.8635735]
[1719947853851,23.0094,152.58,152.49,0.8635735]
[1719947854352,6.5545,152.57,152.49,0.8635735]
[1719947857378,23.0094,152.58,152.49,0.8635735]
[1719947857575,26.5544,152.57,152.49,0.8635735]
[1719947862170,6.5548,152.56,152.49,0.8635735]
[1719947862354,6.5552,152.55,152.49,0.8635735]
[1719947863470,20.0,152.57,152.49,0.8635735]
[1719947863779,26.5546,152.57,152.49,0.8635735]
[1719947864474,6.5548,152.56,152.49,0.8635735]
[1719947864681,20.0,152.57,152.49,0.8635735]
[1719947864882,26.5545,152.57,152.49,0.8635735]
[1719947865258,6.555,152.56,152.49,0.8635735]
[1719947865461,47.06,152.57,152.49,0.8635735]
[1719947865681,6.5558,152.54,152.49,0.8635735]
[1719947866064,6.5573,152.5,152.49,0.8635735]
[1719947866685,6.5571,152.51,152.49,0.8635735]
[1719947867892,6.5566,152.52,152.49,0.8635735]
[1719947868275,6.5569,152.51,152.49,0.8635735]
[1719947869978,6.5573,152.5,152.49,0.8635735]
[1719947871095,26.5573,152.5,152.49,0.8635735]
[1719947875096,20.0,152.5,152.49,0.8635735]
[1719947875272,26.5573,152.5,152.49,0.8635735]
[1719947876982,8.52339342,152.55,152.49,0.8635735]
[1719947877181,6.5555,152.55,152.49,0.8635735]
[1719947877994,6.5557,152.54,152.49,0.8635735]
[1719947878779,6.5552,152.55,152.49,0.8635735]
[1719947878969,6.5556,152.54,152.49,0.8635735]
[1719947879392,6.5552,152.55,152.49,0.8635735]
[1719947879591,51.74229342,152.59,152.49,0.8635735]
[1719947880086,6.5548,152.56,152.49,0.8635735]
[1719947880674,51.74229342,152.59,152.49,0.8635735]
[1719947880881,16.3801,152.63,152.5,15.9367]
[1719947881201,8.52339342,152.64,152.55,100.0]
[1719947881386,43.4705,152.7,152.57,100.0]
[1719947881588,6.5499,152.68,152.58,20.0]
[1719947881893,43.4705,152.7,152.58,20.0]
[1719947881894,6.55,152.67,152.58,20.0]
[1719947882198,6.83153399,152.72,152.6,100.0]
[1719947882439,6.5471,152.74,152.61,20.0]
[1719947882621,6.5471,152.74,152.62,100.0]
[1719947882809,6.5476,152.73,152.63,20.0]
[1719947883021,6.5474,152.74,152.63,20.0]
[1719947883308,6.548,152.72,152.6,100.0]
[1719947883501,6.548,152.72,152.61,20.0]
[1719947883972,6.83097376,152.78,152.67,100.0]
[1719947884172,6.83097376,152.78,152.68,20.0]
[1719947884377,6.5445,152.8,152.68,20.0]
[1719947884789,6.5451,152.79,152.68,20.0]
[1719947886098,6.5445,152.8,152.68,20.0]
[1719947886298,6.545,152.79,152.68,20.0]
[1719947886498,6.5448,152.8,152.68,20.0]
[1719947886800,6.5449,152.79,152.68,20.0]
[1719947887779,257.3,152.81,152.72,100.0]
[1719947887979,257.3,152.81,152.74,100.0]
[1719947888199,257.3,152.81,152.75,20.0]
[1719947888584,257.3,152.81,152.76,100.0]
[1719947888786,257.3,152.81,152.77,20.0]
[1719947888988,257.3,152.81,152.76,100.0]
[1719947889188,257.3,152.81,152.77,20.0]
[1719947890380,257.3,152.81,152.71,127.06]
[1719947890579,257.3,152.81,152.71,100.0]
[1719947891083,263.8441,152.81,152.69,123.263]
[1719947892091,263.8441,152.81,152.7,20.0]
[1719947892690,6.5447,152.8,152.7,20.0]
[1719947893187,6.545,152.79,152.7,20.0]
[1719947893386,6.5445,152.8,152.7,20.0]
[1719947894495,6.5439,152.82,152.7,20.0]
[1719947894800,26.5441,152.81,152.7,20.0]
[1719947895397,20.0,152.81,152.7,20.0]
[1719947897087,26.5441,152.81,152.7,20.0]
[1719947897699,20.0,152.81,152.7,20.0]
[1719947897880,20.0,152.82,152.7,20.0]
[1719947898896,6.5441,152.81,152.7,20.0]
[1719947901403,6.5445,152.8,152.69,123.263]
[1719947901601,6.5445,152.8,152.69,23.263]
[1719947902427,6.0449,152.79,152.67,100.0]
[1719947902711,6.5456,152.78,152.67,100.0]
[1719947903009,12.5898,152.79,152.67,100.0]
[1719947903194,6.5454,152.78,152.67,100.0]
[1719947903395,12.5899,152.79,152.67,100.0]
[1719947903990,6.0449,152.79,152.67,100.0]
[1719947906894,16.6576,152.78,152.65,22.8423]
[1719947907087,6.547,152.75,152.65,22.8423]
[1719947907506,6.5463,152.76,152.65,22.8423]
[1719947908009,36.6576,152.78,152.65,122.8423]
[1719947908201,43.203,152.78,152.65,122.8423]
[1719947908401,36.6576,152.78,152.67,100.0]
[1719947908608,16.6576,152.78,152.67,100.0]
[1719947909508,23.2032,152.78,152.67,100.0]
[1719947909713,16.6576,152.78,152.67,100.0]
[1719947910794,23.2029,152.78,152.67,100.0]
[1719947910997,6.5459,152.77,152.65,122.8423]
[1719947911318,16.6576,152.78,152.65,122.8423]
[1719947912707,6.5462,152.76,152.65,122.8423]
[1719947913021,6.5459,152.77,152.65,122.8423]
[1719947914217,50.213,152.78,152.65,122.8423]
[1719947914419,43.6676,152.78,152.65,122.8423]
[1719947914625,50.2129,152.78,152.65,122.8423]
[1719947914803,16.6576,152.78,152.67,100.0]
[1719947915202,6.5443,152.81,152.67,100.0]
[1719947915412,20.0,152.8,152.69,100.0]
[1719947915610,26.5445,152.8,152.69,100.0]
[1719947915921,26.5445,152.8,152.67,100.0]
[1719947916124,6.5449,152.79,152.67,100.0]
[1719947916325,20.0,152.78,152.67,100.0]
[1719947917327,26.5453,152.78,152.67,100.0]
[1719947917514,26.5453,152.78,152.65,122.8423]
[1719947917823,6.5458,152.77,152.65,122.8423]
[1719947918830,6.5463,152.76,152.65,122.8423]
[1719947919505,21.6247,152.76,152.65,122.8423]
[1719947921326,6.5466,152.75,152.65,22.8423]
[1719947921832,6.5472,152.74,152.65,16.2903]
[1719947922541,6.547,152.74,152.65,16.2903]
[1719947922907,42.0884,152.76,152.65,16.2903]
[1719947923234,42.0884,152.76,152.61,21.4002]
[1719947923235,6.5475,152.73,152.61,21.4002]
[1719947923406,6.5479,152.72,152.61,21.4002]
[1719947923612,36.0568,152.75,152.61,21.4002]
[1719947923613,6.5485,152.71,152.61,21.4002]
[1719947924133,6.548,152.72,152.61,21.4002]
[1719947927513,27.01,152.73,152.61,21.4002]
[1719947927719,20.0,152.72,152.61,21.4002]
[1719947927923,26.5483,152.72,152.61,21.4002]
[1719947928119,21.8051,152.71,152.61,15.3359]
[1719947928318,47.01,152.7,152.57,22.0847]
[1719947928640,6.5503,152.67,152.57,22.0847]
[1719947929238,47.01,152.7,152.57,22.0847]
[1719947930620,6.55,152.67,152.57,22.0847]
[1719947931449,6.5502,152.67,152.57,22.0847]
[1719947935826,66.7,152.7,152.57,22.0847]
[1719947935827,47.01,152.66,152.57,22.0847]
[1719947936027,27.01,152.66,152.57,22.0847]
[1719947936225,33.5606,152.66,152.57,22.0847]
[1719947937227,27.01,152.66,152.57,22.0847]
[1719947938450,26.83602158,152.7,152.57,22.0847]
[1719947938649,53.5587,152.7,152.57,22.0847]
[1719947938819,20.0,152.7,152.57,122.0847]
[1719947939450,26.5489,152.7,152.57,122.0847]
[1719947939836,20.0,152.7,152.57,122.0847]
[1719947941247,6.5493,152.69,152.57,122.0847]
[1719947941749,6.5492,152.69,152.57,122.0847]
[1719947943145,6.5505,152.66,152.57,22.0847]
[1719947943521,33.56,152.68,152.57,22.0847]
[1719947944853,6.5501,152.67,152.57,22.0847]
[1719947946337,27.01,152.68,152.57,22.0847]
[1719947946538,20.0,152.67,152.57,22.0847]
[1719947947745,6.5514,152.64,152.57,22.0847]
[1719947948321,6.5519,152.63,152.57,22.0847]
[1719947948736,6.5514,152.64,152.57,22.0847]
[1719947949443,33.561,152.65,152.57,22.0847]
[1719947949746,20.0,152.64,152.57,22.0847]
[1719947951146,6.5499,152.68,152.57,22.0847]
[1719947951331,20.0,152.67,152.57,22.0847]
[1719947951544,6.5505,152.66,152.57,22.0847]
[1719947951933,20.0,152.67,152.57,22.0847]
[1719947952135,20.0,152.68,152.57,22.0847]
[1719947952441,6.5503,152.67,152.57,22.0847]
[1719947952757,26.5505,152.66,152.57,22.0847]
[1719947952934,6.5505,152.66,152.57,22.0847]
[1719947954536,20.0,152.68,152.57,22.0847]
[1719947954860,26.5499,152.68,152.57,22.0847]
[1719947955235,6.5501,152.67,152.57,22.0847]
[1719947955554,26.5506,152.66,152.57,22.0847]
[1719947958232,20.0,152.66,152.57,22.0847]
[1719947962554,20.0,152.66,152.57,122.0847]
[1719947963071,15.3826,152.71,152.57,122.0847]
[1719947963260,42.3926,152.71,152.57,122.0847]
[1719947963442,6.5494,152.69,152.57,122.0847]
[1719947964735,62.1026,152.71,152.57,22.0847]
[1719947964971,33.5597,152.68,152.57,22.0847]
[1719947965357,33.5597,152.68,152.57,122.0847]
[1719947965556,27.01,152.68,152.57,122.0847]
[1719947967651,27.01,152.68,152.57,22.0847]
[1719947969438,6.5494,152.69,152.57,22.0847]
[1719947969839,13.52,152.64,152.59,13.52]
[1719947970944,13.52,152.64,152.57,22.0847]
[1719947971264,13.52,152.64,152.58,13.52]
[1719947972056,13.52,152.63,152.58,13.52]
[1719947972867,13.52,152.63,152.57,22.0847]
[1719947973050,13.52,152.6,152.57,22.0847]
[1719947973253,60.6315,152.64,152.57,22.0847]
[1719947973254,13.52,152.59,152.57,22.0847]
[1719947975563,13.52,152.6,152.57,22.0847]
[1719947976263,13.52,152.61,152.57,22.0847]
[1719947977048,13.52,152.6,152.57,22.0847]
[1719947977645,54.08,152.64,152.57,22.0847]
[1719947977844,13.52,152.6,152.57,22.0847]
[1719947979662,6.5179,152.69,152.57,22.0847]
[1719947979861,26.5498,152.68,152.57,35.6047]
[1719947980066,13.52,152.63,152.57,35.6047]
[1719947980261,13.52,152.62,152.57,22.0847]
[1719947981068,13.52,152.61,152.57,22.0847]
[1719947984657,22.21961928,152.71,152.59,113.52]
[1719947984852,13.52,152.65,152.6,13.52]
[1719947997085,6.5489,152.7,152.6,13.52]
[1719947997383,13.52,152.65,152.6,13.52]
[1719947997585,13.52,152.66,152.61,13.52]
[1719948000283,13.52,152.65,152.58,5.22036627]
[1719948000474,13.52,152.63,152.58,13.52]
[1719948000667,13.52,152.63,152.57,122.0847]
[1719948000868,13.52,152.63,152.58,13.52]
[1719948001074,13.52,152.63,152.57,122.0847]
[1719948001075,13.52,152.64,152.59,13.52]
[1719948002514,26.5493,152.69,152.59,100.0]
[1719948002515,20.0,152.69,152.59,100.0]
[1719948002690,21.931,152.71,152.59,100.0]
[1719948002691,13.52,152.66,152.61,13.52]
[1719948002864,13.52,152.65,152.6,13.52]
[1719948003064,13.52,152.65,152.59,113.52]
[1719948003471,13.52,152.65,152.59,100.0]
[1719948003671,13.52,152.65,152.59,113.52]
[1719948005188,13.52,152.65,152.6,13.52]
[1719948006183,13.52,152.65,152.59,113.52]
[1719948011590,26.5488,152.7,152.59,113.52]
[1719948011795,13.52,152.65,152.59,113.52]
[1719948011975,13.52,152.65,152.6,13.52]
[1719948012881,13.52,152.65,152.59,113.52]
[1719948013079,6.5499,152.68,152.57,127.42003052]
[1719948013388,13.52,152.61,152.57,127.42003052]
[1719948014095,13.52,152.62,152.57,140.94003052]
[1719948017086,13.52,152.62,152.57,15.8617]
[1719948017387,13.52,152.59,152.55,100.0]
[1719948020780,13.52,152.59,152.55,113.52]
[1719948021403,13.52,152.6,152.55,113.52]
[1719948022519,16.1246,152.65,152.57,100.0]
[1719948022687,6.5036,152.69,152.58,13.52]
[1719948022688,13.52,152.63,152.58,13.52]
[1719948022887,13.52,152.63,152.59,0.48825715]
[1719948023401,13.52,152.63,152.58,13.52]
[1719948025906,13.52,152.64,152.59,13.52]
[1719948026108,22.8469,152.69,152.6,13.52]
[1719948026404,13.52,152.66,152.61,13.52]
[1719948026814,13.52,152.65,152.6,13.52]
[1719948027021,6.5496,152.68,152.59,15.0845]
[1719948027310,13.52,152.62,152.59,15.0845]
[1719948027522,13.52,152.63,152.59,15.0845]
[1719948028215,13.52,152.64,152.59,28.6045]
[1719948028387,22.8469,152.69,152.6,13.52]
[1719948028583,13.52,152.65,152.6,13.52]
[1719948029516,22.8469,152.69,152.6,13.52]
[1719948029725,22.8469,152.69,152.59,115.0845]
[1719948029726,22.6505,152.73,152.62,100.0]
[1719948029906,22.6505,152.73,152.64,13.52]
[1719948029907,13.52,152.69,152.64,13.52]
[1719948030292,22.6505,152.73,152.64,13.52]
[1719948030498,13.52,152.69,152.64,113.52]
[1719948030698,13.52,152.69,152.64,13.52]
[1719948031108,6.5485,152.71,152.6,100.0]
[1719948031295,13.52,152.66,152.61,13.52]
[1719948032014,13.52,152.72,152.6,13.52]
[1719948032015,13.52,152.65,152.6,13.52]
[1719948033014,13.52,152.66,152.61,13.52]
[1719948034197,29.198,152.73,152.62,13.52]
[1719948034493,13.52,152.68,152.63,13.52]
[1719948034693,22.6505,152.73,152.66,13.52]
[1719948035106,13.52,152.71,152.66,13.52]
[1719948035300,22.6505,152.73,152.66,13.52]
[1719948035705,13.52,152.71,152.66,13.52]
[1719948036215,22.6505,152.73,152.62,100.0]
[1719948036420,13.52,152.69,152.64,13.52]
[1719948036822,13.52,152.7,152.65,13.52]
[1719948038309,29.1984,152.73,152.6,100.0]
[1719948038521,29.1984,152.73,152.62,13.52]
[1719948038522,13.52,152.67,152.62,13.52]
[1719948038711,13.52,152.67,152.6,100.0]
[1719948038913,13.52,152.67,152.62,13.52]
[1719948040425,13.52,152.67,152.63,1.31007221]
[1719948040921,13.52,152.67,152.62,13.52]
[1719948042533,22.6505,152.73,152.64,13.52]
[1719948042698,13.52,152.69,152.64,13.52]
[1719948046411,16.1312,152.73,152.65,13.52]
[1719948046725,13.52,152.72,152.67,13.52]
[1719948047509,16.1312,152.73,152.67,13.52]
[1719948047709,16.5321,152.76,152.67,13.52]
[1719948047910,13.52,152.72,152.67,13.52]
[1719948048122,13.52,152.73,152.67,13.52]
[1719948048534,13.52,152.73,152.68,13.52]
[1719948049722,13.52,152.72,152.67,13.52]
[1719948053329,13.52,152.72,152.65,15.3025]
[1719948053539,13.52,152.73,152.68,13.52]
[1719948054034,13.52,152.72,152.67,13.52]
[1719948057622,13.52,152.72,152.65,15.3025]
[1719948057846,13.52,152.72,152.67,13.52]
[1719948058129,13.52,152.72,152.66,13.52]
[1719948060149,13.52,152.72,152.67,13.52]
[1719948060321,13.52,152.68,152.57,15.8954]
[1719948060525,13.52,152.66,152.6,30.0521]
[1719948061125,13.52,152.66,152.6,13.52]
[1719948061536,28.6094,152.71,152.6,13.52]
[1719948061738,13.52,152.66,152.6,13.52]
[1719948062045,13.52,152.66,152.61,13.52]
[1719948063932,13.52,152.66,152.6,13.52]
[1719948064142,13.52,152.65,152.6,13.52]
[1719948065947,13.52,152.65,152.57,15.8954]
[1719948066254,13.52,152.61,152.53,495.9965]
[1719948066459,13.52,152.6,152.55,13.52]
[1719948067729,22.5362,152.65,152.55,100.0]
[1719948067934,13.52,152.63,152.58,13.52]
[1719948068839,13.52,152.63,152.57,13.52]
[1719948069153,13.52,152.62,152.57,13.52]
[1719948069352,6.5522,152.62,152.53,15.5965]
[1719948069536,13.52,152.59,152.54,13.52]
[1719948069738,29.83,152.58,152.49,100.8635735]
[1719948069945,13.52,152.57,152.52,13.52]
[1719948070145,13.52,152.56,152.49,100.8635735]
[1719948070348,13.52,152.56,152.51,13.52]
[1719948070736,13.52,152.55,152.49,0.8635735]
[1719948070933,16.31,152.58,152.49,0.8635735]
[1719948070934,13.52,152.53,152.49,0.8635735]
[1719948071135,16.31,152.58,152.49,0.8635735]
[1719948071136,13.52,152.51,152.49,0.8635735]
[1719948071441,13.52,152.5,152.49,0.8635735]
[1719948071647,13.52,152.51,152.49,0.8635735]
[1719948072033,13.52,152.5,152.49,0.8635735]
[1719948072234,6.5552,152.56,152.49,0.8635735]
[1719948072466,13.52,152.52,152.49,0.8635735]
[1719948072935,13.52,152.51,152.49,0.8635735]
[1719948073951,20.0,152.55,152.49,0.8635735]
[1719948074153,20.0,152.56,152.49,0.8635735]
[1719948074355,20.0,152.57,152.49,0.8635735]
[1719948075460,26.5544,152.57,152.49,0.8635735]
[1719948075940,16.31,152.58,152.49,0.8635735]
[1719948076647,16.3915,152.61,152.5,100.0]
[1719948077465,13.1965,152.63,152.53,100.0]
[1719948077466,6.6445,152.63,152.53,100.0]
[1719948079556,13.1964,152.63,152.53,100.0]
[1719948082660,6.6445,152.63,152.53,100.0]
[1719948083051,13.1963,152.63,152.53,100.0]
[1719948086666,6.6445,152.63,152.53,100.0]
[1719948087365,13.1964,152.63,152.53,100.0]
[1719948087658,6.5529,152.61,152.49,112.39243637]
[1719948087863,6.6445,152.63,152.49,7.0842735]
[1719948087864,6.5538,152.59,152.49,7.0842735]
[1719948088054,6.5539,152.58,152.49,7.0842735]
[1719948088254,6.5536,152.59,152.49,7.0842735]
[1719948088643,6.5531,152.6,152.49,7.0842735]
[1719948088847,6.5525,152.62,152.51,100.0]
[1719948089047,20.0,152.61,152.49,7.0842735]
[1719948089641,20.0,152.62,152.49,7.0842735]
[1719948089842,47.08,152.62,152.49,7.0842735]
[1719948090756,6.5531,152.6,152.49,7.0842735]
[1719948091064,47.08,152.62,152.49,7.0842735]
[1719948091365,6.5532,152.6,152.49,7.0842735]
[1719948092065,6.5527,152.61,152.49,7.0842735]
[1719948093247,6.5527,152.61,152.5,1.30992701]
[1719948093869,13.53,152.56,152.51,13.53]
[1719948094273,13.53,152.56,152.5,1.30992701]
[1719948094566,13.53,152.56,152.51,13.53]
[1719948095073,13.53,152.56,152.5,1.30992701]
[1719948095372,13.53,152.55,152.5,13.53]
[1719948095750,46.2624,152.62,152.51,13.53]
[1719948095952,13.53,152.57,152.52,13.53]
[1719948096445,13.53,152.57,152.53,1.31105087]
[1719948097752,6.5526,152.61,152.53,1.31105087]
[1719948097952,13.53,152.57,152.53,1.31105087]
[1719948098172,13.53,152.58,152.53,1.31105087]
[1719948099253,13.53,152.58,152.53,1.96683787]